bitfinex-derivatives/quotes_BNBF0:USTF0_20250708
["timestamp","ask_amount","ask_price","bid_price","bid_amount"]
[1752006560118,1.01690292,660.48,660.07,2.26979001]
[1752006560418,1.01690292,660.47,660.07,2.26979001]
[1752006560622,1.01690292,660.46,660.07,2.26979001]
[1752006560819,1.01690292,660.45,660.07,2.26979001]
[1752006561022,1.01690292,660.44,660.23,1.70304833]
[1752006561217,1.01690292,660.43,660.2,1.70304833]
[1752006561417,1.69497261,660.61,660.24,1.953]
[1752006561623,1.19011018,660.6,660.24,1.953]
[1752006561822,1.19011018,660.59,660.24,1.953]
[1752006562018,1.69497261,660.61,660.24,1.953]
[1752006562019,1.19011018,660.58,660.24,1.953]
[1752006562320,1.19011018,660.57,660.24,1.953]
[1752006562523,1.19011018,660.56,660.24,1.953]
[1752006562721,1.19011018,660.55,660.24,1.953]
[1752006562919,1.19011018,660.54,660.24,1.953]
[1752006563120,1.19011018,660.53,660.24,1.953]
[1752006563424,1.19011018,660.52,660.24,1.953]
[1752006563624,1.19011018,660.51,660.24,1.953]
[1752006563820,1.19011018,660.5,660.24,1.953]
[1752006564026,1.19011018,660.49,660.24,1.953]
[1752006564221,1.19011018,660.48,660.24,1.953]
[1752006564422,1.19011018,660.47,660.24,1.953]
[1752006564621,1.19011018,660.46,660.24,1.953]
[1752006564822,1.19011018,660.45,660.24,1.953]
[1752006565026,1.19011018,660.44,660.24,1.953]
[1752006565228,1.19011018,660.43,660.24,1.953]
[1752006565422,1.69497261,660.6,660.24,1.953]
[1752006565627,1.19011002,660.59,660.24,1.953]
[1752006565828,1.19011002,660.58,660.24,1.953]
[1752006566025,1.19011002,660.57,660.24,1.953]
[1752006566225,1.69497261,660.6,660.24,1.953]
[1752006566226,1.19011002,660.56,660.24,1.953]
[1752006566522,1.19011002,660.55,660.24,1.953]
[1752006566729,1.19011002,660.54,660.24,1.953]
[1752006566921,1.19011002,660.53,660.24,1.953]
[1752006567125,1.19011002,660.52,660.24,1.953]
[1752006567325,1.19011002,660.51,660.24,1.953]
[1752006567526,1.19011002,660.5,660.24,1.953]
[1752006567726,1.19011002,660.49,660.24,1.953]
[1752006567926,1.19011002,660.48,660.24,1.953]
[1752006568126,1.19011002,660.47,660.24,1.953]
[1752006568422,1.19011002,660.46,660.24,1.953]
[1752006568625,1.19011002,660.45,660.24,1.953]
[1752006568828,1.19011002,660.44,660.24,1.953]
[1752006569029,1.19011002,660.43,660.24,1.953]
[1752006569229,1.69497261,660.6,660.24,1.953]
[1752006569530,1.1900982,660.59,660.24,1.953]
[1752006569829,1.69497261,660.6,660.24,1.953]
[1752006571038,1.69497261,660.58,660.24,3.65604833]
[1752006571427,1.69497261,660.57,660.26,1.70304833]
[1752006573435,1.69497261,660.59,660.24,1.953]
[1752006576032,1.19009803,660.58,660.24,1.953]
[1752006576839,1.19009803,660.57,660.24,1.953]
[1752006577038,1.19009803,660.56,660.24,1.953]
[1752006577236,1.19009803,660.55,660.24,1.953]
[1752006577432,1.19009803,660.54,660.24,1.953]
[1752006577732,1.19009803,660.53,660.24,1.953]
[1752006577933,1.19009803,660.52,660.24,1.953]
[1752006578135,1.19009803,660.51,660.24,1.953]
[1752006578345,1.19009803,660.5,660.24,1.953]
[1752006578637,1.19009803,660.49,660.24,1.953]
[1752006578845,1.19009803,660.48,660.24,1.953]
[1752006579036,1.19009803,660.47,660.24,1.953]
[1752006579235,1.19009803,660.46,660.24,1.953]
[1752006579445,1.19009803,660.45,660.24,1.953]
[1752006579734,1.19009803,660.44,660.24,1.953]
[1752006580038,1.19009803,660.43,660.24,1.953]
[1752006580238,1.69497261,660.59,660.24,1.953]
[1752006580437,1.19009776,660.58,660.24,1.953]
[1752006580735,1.19009776,660.57,660.24,1.953]
[1752006580938,1.19009776,660.56,660.24,1.953]
[1752006581240,1.19009776,660.55,660.24,1.953]
[1752006581439,1.19009776,660.54,660.24,1.953]
[1752006581640,1.19009776,660.53,660.24,1.953]
[1752006581839,1.19009776,660.52,660.24,1.953]
[1752006582046,1.19009776,660.51,660.24,1.953]
[1752006582241,1.19009776,660.5,660.24,1.953]
[1752006582441,1.19009776,660.49,660.24,1.953]
[1752006582643,1.19009776,660.48,660.24,1.953]
[1752006582839,1.19009776,660.47,660.24,1.953]
[1752006583139,1.19009776,660.46,660.24,1.953]
[1752006583344,1.19009776,660.45,660.25,1.70304833]
[1752006583644,1.19009776,660.44,660.25,1.70304833]
[1752006583843,1.19009776,660.43,660.25,1.70304833]
[1752006584044,1.19009776,660.42,660.25,1.70304833]
[1752006584244,1.69497261,660.57,660.25,1.70304833]
[1752006584445,1.19009767,660.56,660.25,1.70304833]
[1752006584646,1.19009767,660.55,660.25,1.70304833]
[1752006584842,1.19009767,660.54,660.25,1.70304833]
[1752006585046,1.19009767,660.53,660.25,1.70304833]
[1752006585244,1.19009767,660.52,660.25,1.70304833]
[1752006585446,1.19009767,660.51,660.25,1.70304833]
[1752006585643,1.19009767,660.5,660.25,1.70304833]
[1752006585843,1.19009767,660.49,660.25,1.70304833]
[1752006586057,1.19009767,660.48,660.25,1.70304833]
[1752006586347,1.19009767,660.47,660.25,1.70304833]
[1752006586543,1.19009767,660.46,660.25,1.70304833]
[1752006586748,1.19009767,660.45,660.25,1.70304833]
[1752006586948,1.19009767,660.44,660.25,1.70304833]
[1752006587146,1.19009767,660.43,660.25,1.70304833]
[1752006587346,1.19009767,660.42,660.25,1.70304833]
[1752006587645,1.69497261,660.57,660.25,1.70304833]
[1752006587849,1.19009738,660.56,660.25,1.70304833]
[1752006588048,1.19009738,660.55,660.25,1.70304833]
[1752006588249,1.19009738,660.54,660.25,1.70304833]
[1752006588445,1.19009738,660.53,660.25,1.70304833]
[1752006588650,1.19009738,660.52,660.26,1.70304833]
[1752006588850,1.19009738,660.51,660.26,1.70304833]
[1752006589051,1.19009738,660.5,660.26,1.70304833]
[1752006589252,1.19009738,660.49,660.26,1.70304833]
[1752006589454,1.19009738,660.48,660.26,1.70304833]
[1752006589652,1.19009738,660.47,660.26,1.70304833]
[1752006589849,1.19009738,660.46,660.26,1.70304833]
[1752006590048,1.19009738,660.45,660.26,1.70304833]
[1752006590554,1.69497261,660.57,660.26,1.70304833]
[1752006591062,1.69497261,660.54,660.24,1.953]
[1752006599958,1.69497261,660.55,660.24,1.953]
[1752006602158,1.69497261,660.56,660.24,1.953]
[1752006607778,1.69497261,660.55,660.24,1.953]
[1752006607979,2.26267687,660.66,660.24,1.953]
[1752006607980,1.69497261,660.56,660.24,1.953]
[1752006608368,1.69497261,660.55,660.24,1.953]
[1752006609172,1.69497261,660.58,660.24,1.953]
[1752006618474,1.69497261,660.58,660.07,2.26979001]
[1752006619078,1.69497261,660.56,660.13,2.26979001]
[1752006619978,1.69497261,660.55,660.13,2.26979001]
[1752006620778,1.69497261,660.57,660.08,2.26979001]
[1752006621078,1.69497261,660.56,660.07,2.26979001]
[1752006621279,1.69497261,660.56,660.09,2.557]
[1752006625479,1.69497261,660.54,660.11,2.26979001]
[1752006625779,1.69497261,660.54,660.1,2.26979001]
[1752006626175,1.69497261,660.54,660.09,4.82679001]
[1752006626377,1.69497261,660.55,660.09,2.557]
[1752006626780,1.69497261,660.55,660.09,4.82679001]
[1752006627077,1.69497261,660.54,660.11,2.26979001]
[1752006629077,1.69497261,660.54,660.09,2.557]
[1752006629078,1.69497261,660.54,660.1,2.26979001]
[1752006629479,1.69497261,660.56,660.09,2.557]
[1752006629684,1.69497261,660.55,660.09,2.557]
[1752006632892,1.70143406,660.55,660.09,2.557]
[1752006638497,1.01462086,660.66,660.09,2.557]
[1752006638795,1.70143638,660.55,660.09,2.557]
[1752006639192,1.70143638,660.55,660.08,2.26979001]
[1752006639396,1.70143638,660.54,660.11,2.26979001]
[1752006641297,1.70143638,660.55,660.09,2.26979001]
[1752006642001,1.70143638,660.54,660.09,2.26979001]
[1752006642899,1.70143638,660.54,660.1,2.148]
[1752006644302,1.7014885,660.54,660.1,2.148]
[1752006646303,1.7014885,660.55,660.1,2.148]
[1752006649503,1.7014885,660.55,660.1,4.41779001]
[1752006649706,1.7014885,660.54,660.11,2.26979001]
[1752006649907,1.7014885,660.55,660.11,2.26979001]
[1752006650203,1.7014885,660.55,660.1,4.41779001]
[1752006651206,1.7014885,660.54,660.11,2.26979001]
[1752006661315,1.7014885,660.53,660.1,4.41779001]
[1752006669234,1.7014885,660.55,660.1,2.148]
[1752006669432,1.7014885,660.46,660.1,2.148]
[1752006670530,1.7014885,660.47,660.1,2.148]
[1752006671431,1.7014885,660.48,660.1,2.148]
[1752006673128,1.7014885,660.49,660.1,2.148]
[1752006674140,1.7014885,660.49,660.05,0.26347868]
[1752006675331,1.7014885,660.5,660.05,0.26347868]
[1752006677937,1.7014885,660.5,660.06,2.468]
[1752006679134,1.0146691,660.62,660.06,2.468]
[1752006679135,1.7014885,660.49,660.06,2.468]
[1752006684340,1.7014885,660.5,660.06,2.468]
[1752006688444,1.69759366,660.5,660.06,2.468]
[1752006690245,1.69759366,660.51,660.06,2.468]
[1752006690843,1.69748947,660.5,660.06,2.468]
[1752006692646,1.69748947,660.51,660.06,2.468]
[1752006692850,1.69748947,660.52,660.06,2.468]
[1752006693045,1.69748947,660.51,660.06,2.468]
[1752006699446,1.69748947,660.52,660.06,2.468]
[1752006699947,1.69748947,660.53,660.06,2.468]
[1752006702046,1.69748947,660.53,660.05,0.26347868]
[1752006702549,1.01398074,660.65,660.05,0.26347868]
[1752006702550,1.69748947,660.52,660.05,0.26347868]
[1752006702753,1.69748947,660.53,660.05,0.26347868]
[1752006704450,1.69748947,660.53,660.06,1.847]
[1752006706247,1.69748947,660.52,660.06,1.847]
[1752006709856,1.69748947,660.5,660.06,1.847]
[1752006712056,1.69748947,660.49,660.06,1.847]
[1752006716256,1.69748947,660.48,660.06,1.847]
[1752006720862,1.69748947,660.47,660.06,1.847]
[1752006721158,0.26345175,660.91,660.06,1.847]
[1752006721159,1.69748947,660.41,660.06,1.847]
[1752006722058,1.69748947,660.38,660.06,1.847]
[1752006731571,1.69748947,660.39,660.06,1.847]
[1752006732474,1.69748947,660.39,659.97,0.26354552]
[1752006735972,1.69748947,660.39,659.98,2.635]
[1752006737875,1.69748947,660.4,659.98,2.635]
[1752006742384,1.69748947,660.41,659.98,2.635]
[1752006744785,1.69757441,660.41,659.98,2.635]
[1752006745887,1.69757441,660.36,659.98,2.635]
[1752006747483,1.69757441,660.37,659.98,2.635]
[1752006747784,1.69757441,660.36,659.98,2.635]
[1752006748384,1.69757441,660.37,659.98,2.635]
[1752006752292,1.69757441,660.41,659.98,2.635]
[1752006752688,1.69757441,660.42,659.98,2.635]
[1752006753395,1.69757441,660.4,659.98,2.635]
[1752006757591,1.69757441,660.41,659.98,2.635]
[1752006762198,1.69757441,660.39,659.98,2.635]
[1752006762700,1.69757441,660.38,659.98,2.635]
[1752006765802,1.69615514,660.38,659.98,2.635]
[1752006766803,1.69615514,660.37,659.98,2.635]
[1752006767406,1.69615514,660.36,659.98,2.635]
[1752006770401,1.69615514,660.35,659.98,2.635]
[1752006770804,0.26345175,660.91,659.98,2.635]
[1752006770805,1.69615514,660.34,659.98,2.635]
[1752006774502,1.69615514,660.33,659.98,2.635]
[1752006776806,1.69615514,660.44,659.98,2.635]
[1752006777705,1.69615514,660.43,659.98,2.635]
[1752006778109,1.69615514,660.43,659.97,0.26354552]
[1752006778507,1.69615514,660.42,659.97,0.26354552]
[1752006779909,1.69615514,660.41,659.97,0.26354552]
[1752006781110,1.69615514,660.41,659.98,2.183]
[1752006781410,1.69615514,660.4,659.98,2.183]
[1752006781811,1.69615514,660.63,659.98,2.183]
[1752006782212,1.69615514,660.64,659.98,2.183]
[1752006783314,1.69615514,660.65,659.98,2.183]
[1752006784316,1.69615514,660.66,659.98,2.183]
[1752006785213,1.69615514,660.67,659.98,2.183]
[1752006786314,1.69615514,660.68,659.98,2.183]
[1752006786809,1.69615514,660.62,659.98,2.183]
[1752006789314,1.69615514,660.63,659.98,2.183]
[1752006791218,1.69615514,660.62,659.98,2.183]
[1752006791715,1.69615514,660.57,659.98,2.183]
[1752006793417,1.69615514,660.56,659.98,2.183]
[1752006793927,1.69615514,660.57,659.98,2.183]
[1752006794122,1.69615514,660.51,659.98,2.183]
[1752006796221,1.69615514,660.5,659.98,2.183]
[1752006796422,1.69615514,660.51,659.98,2.183]
[1752006796623,1.69615514,660.48,659.98,2.183]
[1752006797820,1.69615514,660.45,659.98,2.183]
[1752006800720,1.69288384,660.45,659.98,2.183]
[1752006803626,1.69288384,660.44,659.98,2.183]
[1752006806433,1.69288384,660.42,659.98,2.183]
[1752006806833,1.69288384,660.44,659.98,2.183]
[1752006813333,1.69288384,660.42,659.98,2.183]
[1752006815541,1.69288384,660.41,659.98,2.183]
[1752006815742,1.69288384,660.44,659.98,2.183]
[1752006818943,1.69288384,660.42,659.98,2.183]
[1752006820142,1.69288384,660.42,659.89,0.26356548]
[1752006823844,1.69288384,660.42,659.9,1.901]
[1752006825549,1.69288384,660.39,659.9,1.901]
[1752006828154,1.69288384,660.38,659.9,1.901]
[1752006828950,1.69288384,660.39,659.9,1.901]
[1752006829151,1.69288384,660.38,659.9,1.901]
[1752006831151,1.69288384,660.39,659.9,1.901]
[1752006831351,1.69288384,660.4,659.9,1.901]
[1752006831852,1.69288384,660.39,659.9,1.901]
[1752006841165,1.69288384,660.37,659.9,1.901]
[1752006845366,1.69288384,660.36,659.9,1.901]
[1752006846969,1.69288384,660.38,659.9,1.901]
[1752006847166,1.69288384,660.37,659.9,1.901]
[1752006848268,1.69288384,660.36,659.9,1.901]
[1752006848970,1.69288384,660.37,659.9,1.901]
[1752006849271,1.69288384,660.36,659.9,1.901]
[1752006850370,1.69288384,660.35,659.9,1.901]
[1752006851374,1.69288384,660.33,659.9,1.901]
[1752006852274,1.69288384,660.32,659.9,1.901]
[1752006852774,1.69288384,660.33,659.9,1.901]
[1752006852973,1.69288384,660.32,659.9,1.901]
[1752006853273,1.69288384,660.31,659.9,1.901]
[1752006857174,1.69288384,660.3,659.9,1.901]
[1752006858275,1.69288384,660.29,659.9,1.901]
[1752006859878,1.69288384,660.28,659.9,1.901]
[1752006865477,1.69288384,660.29,659.9,1.901]
[1752006865780,1.69288384,660.28,659.9,1.901]
[1752006869782,1.69288384,660.27,659.9,1.901]
[1752006875089,1.69288384,660.26,659.9,1.901]
[1752006875285,1.69288384,660.25,659.9,1.901]
[1752006878287,1.69288384,660.24,659.9,1.901]
[1752006883492,1.69288384,660.27,659.9,1.901]
[1752006883692,1.69288384,660.27,659.84,0.26359543]
[1752006885488,1.69288384,660.26,659.84,0.26359543]
[1752006885692,1.69288384,660.27,659.84,0.26359543]
[1752006887592,1.69288384,660.28,659.85,1.646]
[1752006888488,1.69288384,660.27,659.85,1.646]
[1752006889389,1.69288384,660.28,659.85,1.646]
[1752006891090,1.69288384,660.27,659.85,1.646]
[1752006892396,1.69288384,660.2,659.85,1.646]
[1752006893097,1.69288384,660.21,659.85,1.646]
[1752006893597,1.69288384,660.19,659.85,1.646]
[1752006894298,1.69288384,660.2,659.85,1.646]
[1752006895193,1.69288384,660.21,659.85,1.646]
[1752006895593,1.69288384,660.2,659.85,1.646]
[1752006896297,1.69288384,660.21,659.85,1.646]
[1752006899297,1.69288384,660.19,659.85,1.646]
[1752006904402,1.69288384,660.2,659.85,1.646]
[1752006907606,1.69288384,660.2,659.76,0.2636134]
[1752006911106,2.26267687,660.31,659.76,0.2636134]
[1752006911107,1.69288384,660.21,659.76,0.2636134]
[1752006911611,1.69288384,660.21,659.77,2.086]
[1752006914612,1.69542971,660.21,659.77,2.086]
[1752006916412,1.69542971,660.22,659.77,2.086]
[1752006918013,1.69542971,660.23,659.77,2.086]
[1752006918709,1.69542971,660.26,659.77,2.086]
[1752006920210,1.69542971,660.31,659.77,2.086]
[1752006927817,1.69542971,660.3,659.77,2.086]
[1752006928513,1.69542971,660.27,659.77,2.086]
[1752006931115,1.69542971,660.26,659.77,2.086]
[1752006936223,1.69542971,660.29,659.77,2.086]
[1752006938520,1.69542971,660.3,659.77,2.086]
[1752006939321,1.69647277,660.3,659.77,2.086]
[1752006944827,1.01370937,660.41,659.77,2.086]
[1752006945027,1.69649652,660.3,659.77,2.086]
[1752006948325,1.69649652,660.29,659.77,2.086]
[1752006954535,1.69649652,660.29,659.76,0.2636134]
[1752006957039,1.69649652,660.29,659.77,2.265]
[1752006961342,2.26267687,660.4,659.77,2.265]
[1752006961540,1.69664593,660.29,659.77,2.265]
[1752006963543,1.69664593,660.33,659.77,2.265]
[1752006967348,1.69664593,660.32,659.77,2.265]
[1752006972453,1.69664593,660.31,659.77,2.265]
[1752006973452,1.69664593,660.27,659.77,2.265]
[1752006974350,1.69664593,660.27,659.77,4.53479001]
[1752006976450,2.26267687,660.37,659.77,4.53479001]
[1752006976451,1.69664593,660.26,659.77,4.53479001]
[1752006977356,1.69664593,660.26,659.78,2.26979001]
[1752006977552,1.69664593,660.26,659.77,4.53479001]
[1752006979557,1.69664593,660.26,659.78,2.26979001]
[1752006979955,1.69664593,660.26,659.77,2.265]
[1752006985957,1.69664593,660.27,659.77,2.265]
[1752006986458,1.69664593,660.26,659.77,2.265]
[1752006989761,1.69664593,660.25,659.78,2.26979001]
[1752006990562,1.69664593,660.25,659.77,4.53479001]
[1752006993066,1.69664593,660.24,659.79,2.26979001]
[1752006994068,1.69664593,660.24,659.77,2.265]
[1752006994069,1.69664593,660.24,659.8,2.26979001]
[1752006994472,1.69664593,660.24,659.78,2.26979001]
[1752006995474,1.69664593,660.24,659.79,2.26979001]
[1752006996074,1.69664593,660.23,659.8,2.26979001]
[1752006999880,1.69664593,660.23,659.81,2.26979001]
[1752007011588,1.69664593,660.23,659.82,2.485]
[1752007032698,2.26267687,660.34,659.82,2.485]
[1752007032897,1.69970933,660.23,659.82,2.485]
[1752007034200,1.69970933,660.24,659.82,2.485]
[1752007037399,1.69970926,660.24,659.82,2.485]
[1752007040004,1.69970926,660.25,659.82,2.485]
[1752007043104,1.01530977,660.36,659.82,2.485]
[1752007043304,1.69970927,660.25,659.82,2.485]
[1752007043510,1.69970927,660.24,659.82,2.485]
[1752007043708,1.01530977,660.36,659.82,2.485]
[1752007043709,1.69970927,660.25,659.82,2.485]
[1752007044107,1.69970927,660.24,659.82,2.485]
[1752007049915,1.69970927,660.23,659.82,2.485]
[1752007065618,1.69970927,660.23,659.81,2.26979001]
[1752007069021,1.69970927,660.23,659.82,2.531]
[1752007075521,1.69970927,660.28,659.82,2.531]
[1752007075825,1.69970927,660.2,659.82,2.531]
[1752007076424,1.69970927,660.21,659.82,2.531]
[1752007077927,1.69970927,660.22,659.82,2.531]
[1752007079331,1.69970927,660.23,659.82,2.531]
[1752007080526,1.69970927,660.22,659.82,2.531]
[1752007081029,1.69970927,660.22,659.8,0.26359642]
[1752007081332,1.69970927,660.22,659.55,2.26979001]
[1752007081633,1.69970927,660.22,659.71,0.26365834]
[1752007082031,1.69970927,660.21,659.71,0.26365834]
[1752007082231,1.69970927,660.16,659.71,0.26365834]
[1752007083229,1.69970927,660.17,659.71,0.26365834]
[1752007085133,1.69970927,660.17,659.72,1.585]
[1752007085331,1.69970927,660.18,659.72,1.585]
[1752007085534,1.69970927,660.16,659.72,1.585]
[1752007086535,1.69970927,660.17,659.72,1.585]
[1752007086936,1.69970927,660.16,659.72,1.585]
[1752007087437,1.69970927,660.17,659.72,1.585]
[1752007090438,1.69970927,660.18,659.72,1.585]
[1752007090936,1.69970927,660.17,659.72,1.585]
[1752007091432,1.69970927,660.18,659.72,1.585]
[1752007091934,1.69970927,660.16,659.72,1.585]
[1752007092538,1.69970927,660.17,659.72,1.585]
[1752007096341,1.69970927,660.18,659.72,1.585]
[1752007105356,1.69970927,660.19,659.72,1.585]
[1752007112368,1.69970927,660.18,659.72,1.585]
[1752007115770,1.69970927,660.19,659.72,1.585]
[1752007117073,1.69970927,660.18,659.72,1.585]
[1752007122271,1.69970927,660.17,659.72,1.585]
[1752007124374,1.69970927,660.16,659.72,1.585]
[1752007127282,1.69970927,660.15,659.72,1.585]
[1752007129580,1.69970927,660.14,659.72,1.585]
[1752007131285,1.69970927,660.13,659.72,1.585]
[1752007133381,1.69970927,660.12,659.72,1.585]
[1752007134486,1.69970927,660.11,659.72,1.585]
[1752007135382,1.69970927,660.1,659.72,1.585]
[1752007136287,1.69970927,660.09,659.72,1.585]
[1752007138188,1.69970927,660.09,659.71,0.26365834]
[1752007138387,1.69970927,660.08,659.71,0.26365834]
[1752007139285,1.69970927,660.07,659.71,0.26365834]
[1752007140787,1.69970927,660.08,659.71,0.26365834]
[1752007141491,1.69970927,660.07,659.71,0.26365834]
[1752007141986,1.69970927,660.07,659.72,2.236]
[1752007142690,1.69970927,660.06,659.72,2.236]
[1752007145492,1.69970927,660.07,659.72,2.236]
[1752007148496,1.69970927,660.06,659.72,2.236]
[1752007152196,1.69970927,660.07,659.72,2.236]
[1752007161808,1.69970927,660.06,659.72,2.236]
[1752007178327,1.69970927,660.07,659.72,2.236]
[1752007181028,1.69970927,660.07,659.71,0.26365834]
[1752007183432,1.69970927,660.06,659.71,0.26365834]
[1752007184731,1.69970927,660.06,659.72,2.134]
[1752007188736,1.69970927,660.08,659.72,2.134]
[1752007190342,1.69970927,660.07,659.72,2.134]
[1752007191344,1.69970927,660.08,659.72,2.134]
[1752007193145,1.69970927,660.07,659.72,2.134]
[1752007197649,1.69970927,660.08,659.72,2.134]
[1752007198647,1.69970927,660.06,659.72,2.134]
[1752007199642,1.69970927,660.07,659.72,2.134]
[1752007203747,2.26267687,660.17,659.72,2.134]
[1752007203946,1.70086486,660.07,659.72,2.134]
[1752007207946,1.70086486,660.1,659.72,2.134]
[1752007210958,1.70086486,660.09,659.72,2.134]
[1752007214761,1.70086486,660.17,659.72,2.134]
[1752007224667,1.70086486,660.11,659.72,2.134]
[1752007225166,1.01585731,660.24,659.72,2.134]
[1752007225360,1.70058218,660.11,659.72,2.134]
[1752007227762,1.70058218,660.11,659.71,0.26365834]
[1752007228566,1.70058218,660.1,659.71,0.26365834]
[1752007230166,1.70058218,660.09,659.71,0.26365834]
[1752007230569,1.70058218,660.09,659.72,2.528]
[1752007236772,1.70058218,660.07,659.72,2.528]
[1752007245582,1.70058218,660.08,659.72,2.528]
[1752007246582,1.70058218,660.18,659.72,2.528]
[1752007254885,1.70058218,660.15,659.72,2.528]
[1752007256082,1.70058218,660.14,659.72,2.528]
[1752007256384,1.70058218,660.1,659.72,2.528]
[1752007257786,1.70058218,660.09,659.72,2.528]
[1752007258283,1.70058218,660.08,659.72,2.528]
[1752007258987,1.70058218,660.11,659.72,2.528]
[1752007268591,1.70058218,660.09,659.72,2.528]
[1752007269888,1.70058218,660.08,659.72,2.528]
[1752007282504,1.70058218,660.08,659.71,0.26365834]
[1752007283704,1.70058218,660.12,659.71,0.26365834]
[1752007283904,1.70058218,660.13,659.71,0.26365834]
[1752007284406,1.70058218,660.14,659.71,0.26365834]
[1752007285400,1.70058218,660.14,659.72,2.48]
[1752007287307,1.70058218,660.15,659.72,2.48]
[1752007290911,1.70058218,660.16,659.72,2.48]
[1752007293811,1.70058218,660.15,659.72,2.48]
[1752007299315,1.70058218,660.16,659.72,2.48]
[1752007300621,1.70058218,660.15,659.72,2.48]
[1752007301116,1.70058218,660.16,659.72,2.48]
[1752007302017,1.70058218,660.15,659.72,2.48]
[1752007303221,1.70058218,660.16,659.72,2.48]
[1752007309125,1.70058218,660.15,659.72,2.48]
[1752007317829,1.70058218,660.16,659.72,2.48]
[1752007318530,1.70058218,660.15,659.72,2.48]
[1752007320230,1.70058218,660.15,659.71,0.26365834]
[1752007320431,1.70058218,660.12,659.71,0.26365834]
[1752007322932,1.70058218,660.13,659.71,0.26365834]
[1752007323228,1.70058218,660.13,659.72,2.233]
[1752007327236,1.70058218,660.11,659.72,2.233]
[1752007327732,1.70058218,660.1,659.72,2.233]
[1752007332438,1.70058218,660.09,659.72,2.233]
[1752007333039,1.70058218,660.08,659.72,2.233]
[1752007333940,1.70058218,660.1,659.72,2.233]
[1752007334841,1.70058218,660.04,659.72,2.233]
[1752007336240,1.70058218,660.05,659.72,2.233]
[1752007338040,1.01459209,660.16,659.72,2.233]
[1752007338341,1.69847026,660.06,659.72,2.233]
[1752007339842,1.69847026,660.1,659.72,2.233]
[1752007341342,1.69847026,660.11,659.72,2.233]
[1752007344049,1.69796609,660.09,659.72,2.233]
[1752007347250,1.69796609,660.1,659.72,2.233]
[1752007349146,1.69796609,660.11,659.72,2.233]
[1752007349547,1.01388763,660.22,659.72,2.233]
[1752007349851,1.69780143,660.11,659.72,2.233]
[1752007358461,1.69780143,660.1,659.72,2.233]
[1752007360357,1.69780143,660.09,659.72,2.233]
[1752007361263,1.69780143,660.05,659.72,2.233]
[1752007372464,1.69780143,660.06,659.72,2.233]
[1752007374368,1.69780143,660.05,659.58,0.26366732]
[1752007378169,1.69780143,660.05,659.59,2.387]
[1752007378968,1.69780143,660.04,659.59,2.387]
[1752007382371,1.69780143,660.03,659.59,2.387]
[1752007383070,1.69780143,660.05,659.59,2.387]
[1752007386570,1.69780143,660.04,659.59,2.387]
[1752007389370,1.69940788,660.04,659.59,2.387]
[1752007393279,1.69940788,660.03,659.59,2.387]
[1752007394273,1.69940788,660.03,659.58,0.26366732]
[1752007396575,1.69940788,660.03,659.59,1.632]
[1752007402478,1.69940788,660.05,659.59,1.632]
[1752007407179,1.69940788,660.04,659.59,1.632]
[1752007411483,1.69940788,660.05,659.59,1.632]
[1752007412383,1.69940788,660.03,659.59,1.632]
[1752007412588,1.69940788,660.03,659.58,0.26366732]
[1752007414886,1.69940788,660.03,659.59,2.468]
[1752007419491,1.69940788,660.02,659.59,2.468]
[1752007425900,3.39401531,660.23,659.59,2.468]
[1752007425901,1.69940788,660.03,659.59,2.468]
[1752007434006,1.69940788,660.07,659.59,4.73779001]
[1752007434406,1.69940788,660.08,659.59,2.468]
[1752007435305,1.69940788,660.08,659.59,4.73779001]
[1752007435810,1.69940788,660.07,659.61,2.26979001]
[1752007441308,1.69940788,660.07,659.6,2.26979001]
[1752007445418,1.69940788,660.08,659.6,2.26979001]
[1752007447714,1.69940788,660.08,659.59,4.73779001]
[1752007448518,1.69940788,660.08,659.6,2.26979001]
[1752007452222,1.69940788,660.08,659.59,4.73779001]
[1752007452621,1.69940788,660.09,659.59,2.468]